bitfinex/quotes_ETHUSD_20220218
["timestamp","ask_amount","ask_price","bid_price","bid_amount"]
[1645207486819,12.347,2778.3,2776.3,0.1799]
[1645207487017,10.92094792,2777.9,2776.8,0.00105269]
[1645207487220,3.00263,2778.0,2776.8,0.00105269]
[1645207487221,0.5969,2777.8,2776.8,0.00105269]
[1645207487416,1.1799,2777.8,2776.8,0.00105269]
[1645207487619,0.90091,2777.6,2777.2,0.57898926]
[1645207487817,0.90065,2777.5,2777.2,0.57898926]
[1645207488220,0.1799,2778.3,2777.2,0.57898926]
[1645207488417,1.25738002,2778.4,2777.2,0.57898926]
[1645207488418,0.1799,2778.4,2777.2,0.57898926]
[1645207488620,0.1799,2778.5,2777.2,0.57898926]
[1645207488820,0.90038,2778.1,2777.9,0.68259401]
[1645207489420,0.90038,2778.1,2777.3,1.8007193]
[1645207489619,0.90038,2778.1,2777.3,0.3]
[1645207489819,0.90038,2778.1,2777.4,0.9003964]
[1645207490661,0.90038,2778.1,2777.6,0.00121695]
[1645207490861,0.90038,2778.1,2777.8,0.55253882]
[1645207491658,0.90038,2778.1,2777.8,0.55375567]
[1645207492258,1.80055,2778.5,2777.8,0.55375567]
[1645207492459,1.20021,2778.4,2777.8,0.55375567]
[1645207493924,0.01447539,2778.0,2777.8,0.55375567]
[1645207494118,0.01447539,2778.0,2777.9,0.00121683]
[1645207495519,0.01447539,2778.0,2777.8,0.0008953]
[1645207495520,3.61668539,2778.0,2777.8,0.0008953]
[1645207496623,3.61668539,2778.0,2777.8,0.00089532]
[1645207497120,6.30141,2777.9,2777.8,0.00089532]
[1645207497420,6.78131,2777.9,2777.8,0.00089532]
[1645207497665,1.80162,2777.7,2777.3,0.00358181]
[1645207497863,1.98133,2777.6,2777.3,0.00358181]
[1645207498163,4.16552883,2777.6,2777.3,0.00358181]
[1645207498564,0.90071,2777.5,2777.3,0.00358181]
[1645207498964,1.80142,2777.5,2777.3,0.00464681]
[1645207499166,1.80142,2777.5,2777.3,0.001065]
[1645207499765,3.70213,2777.5,2777.3,0.001065]
[1645207499966,0.4799,2777.4,2777.3,0.001065]
[1645207500167,0.4799,2777.4,2777.3,0.00106502]
[1645207500365,0.54397384,2776.8,2776.2,1.6033]
[1645207500567,0.54397384,2776.8,2776.0,0.58397386]
[1645207500768,2.34599384,2776.8,2776.0,0.58397386]
[1645207500967,0.901,2776.6,2776.0,0.58397386]
[1645207501422,1.80194,2776.6,2776.0,0.58397386]
[1645207501616,0.90094,2776.6,2776.0,0.58397386]
[1645207501818,1.80239,2777.2,2776.0,0.58397386]
[1645207502017,0.90071,2776.8,2776.0,0.58397386]
[1645207502615,0.90071,2776.8,2776.2,0.00103818]
[1645207502814,0.90071,2776.8,2776.6,0.65435176]
[1645207503419,0.0008,2777.2,2776.6,0.65435176]
[1645207503817,0.0008,2777.2,2776.6,0.65538979]
[1645207504017,0.0008,2777.2,2776.6,0.00103803]
[1645207504424,0.0008,2777.2,2776.1,0.00415278]
[1645207504425,11.83067,2777.0,2776.1,0.00415278]
[1645207504621,0.1799,2776.9,2776.1,0.00415278]
[1645207504821,1.4799,2776.9,2776.1,0.00415278]
[1645207505063,0.58166326,2776.2,2776.1,0.00415278]
[1645207505264,0.9011221,2776.7,2776.1,0.00415278]
[1645207505466,0.90121,2776.7,2776.1,0.00415278]
[1645207506266,0.90121,2776.7,2776.3,0.00102612]
[1645207507072,1.20121,2776.7,2776.3,0.00102612]
[1645207507272,1.20121,2776.7,2776.3,0.90169772]
[1645207507273,0.3,2776.7,2776.3,0.90169772]
[1645207507472,0.3,2777.0,2776.4,0.00102609]
[1645207507671,1.80221,2777.2,2776.4,0.00102609]
[1645207508070,1.80221,2777.2,2776.9,0.51604646]
[1645207508271,0.0008,2777.2,2776.9,1.30624646]
[1645207508571,0.0008,2777.2,2776.9,1.60624646]
[1645207508838,0.0008,2777.2,2777.0,0.417]
[1645207509242,0.04876844,2777.4,2777.0,0.417]
[1645207509645,1.80092,2778.0,2777.0,0.417]
[1645207510242,1.80092,2778.0,2777.5,0.69181452]
[1645207510446,1.8009,2777.9,2776.7,0.5774]
[1645207510646,3.5,2777.8,2776.7,0.5774]
[1645207510944,13.73163,2777.7,2776.7,0.5774]
[1645207511146,3.9799,2777.6,2776.7,0.5774]
[1645207511342,3.9799,2777.6,2776.5,0.00097304]
[1645207511343,11.93,2777.5,2776.5,0.00097304]
[1645207511548,0.65169332,2777.2,2776.5,0.00097304]
[1645207511747,0.1799,2777.1,2776.5,0.00097304]
[1645207511942,0.65169332,2777.2,2776.5,0.00097304]
[1645207512146,2.45349332,2777.2,2776.5,0.00097304]
[1645207512343,2.45349332,2777.2,2776.3,0.62671637]
[1645207512564,0.90096,2777.0,2776.0,0.00119726]
[1645207512761,0.90097,2777.0,2776.0,0.00119726]
[1645207513163,5.40097,2777.0,2776.0,0.00119726]
[1645207513364,0.4799,2776.9,2776.4,0.00103572]
[1645207513663,10.93,2776.4,2775.5,4.35e-05]
[1645207513864,10.93,2776.2,2774.8,1.65842832]
[1645207514062,10.93,2776.0,2774.8,0.01882832]
[1645207514263,3.6801,2775.9,2774.8,0.01882832]
[1645207514463,4.6801,2775.9,2774.8,0.01882832]
[1645207514667,0.64890847,2775.5,2774.6,0.62385716]
[1645207514866,0.90154,2775.3,2774.7,0.00328363]
[1645207515164,0.3,2775.3,2774.7,0.00328363]
[1645207515763,0.90159,2775.2,2774.7,0.00328363]
[1645207515964,0.90156,2775.2,2774.7,0.00328363]
[1645207516165,0.3,2775.1,2774.5,0.007]
[1645207516423,3.00462,2775.3,2774.5,0.007]
[1645207516815,1.80303,2775.1,2774.5,0.007]
[1645207517016,0.16951153,2775.1,2774.7,0.00118711]
[1645207517220,0.16951153,2775.1,2774.1,0.02776802]
[1645207517417,0.16951153,2775.1,2774.0,2.7043413]
[1645207517619,1.2015,2775.3,2774.0,1.8028313]
[1645207517818,1.2015,2775.3,2774.1,1.53144027]
[1645207518218,1.2015,2775.3,2774.4,0.70859732]
[1645207518417,1.2015,2775.3,2774.0,1.9829313]
[1645207518618,1.2015,2775.3,2774.0,0.1801]
[1645207518619,0.90159,2775.0,2774.0,0.1801]
[1645207519016,0.90159,2775.0,2774.8,0.01470333]
[1645207519218,1.20159,2775.0,2774.8,0.01470333]
[1645207519419,1.20159,2775.0,2774.8,3.33e-06]
[1645207519621,3.6801,2774.9,2774.8,3.33e-06]
[1645207520165,4.6801,2774.9,2774.8,3.33e-06]
[1645207520566,1.1801,2774.9,2774.8,3.33e-06]
[1645207520764,10.93,2774.5,2772.7,3.7611307]
[1645207520966,1.80389,2774.1,2772.9,1.53182461]
[1645207521165,0.1802,2774.0,2772.6,3.66062461]
[1645207521365,1.20194,2774.1,2772.7,1.53182461]
[1645207521764,1.20194,2774.1,2773.4,0.00112828]
[1645207521765,0.4802,2774.1,2773.4,0.00112828]
[1645207521967,0.5392539,2774.0,2773.4,0.00112828]
[1645207522366,0.90205,2773.8,2773.4,0.00112828]
[1645207522767,1.20205,2773.8,2773.4,0.00112828]
[1645207523069,1.20205,2773.8,2773.6,0.0011282]
[1645207523269,2.38225,2773.8,2773.6,0.0011282]
[1645207523469,2.38225,2773.8,2773.1,0.02143906]
[1645207523470,10.93,2773.5,2773.1,0.02143906]
[1645207523667,12.37365196,2773.3,2773.1,0.02143906]
[1645207523918,0.1802,2773.2,2773.1,0.02143906]
[1645207524116,1.74368196,2773.3,2772.4,0.63378532]
[1645207524117,1.2025,2773.3,2772.4,0.63378532]
[1645207524319,0.3,2773.3,2772.5,1.53212508]
[1645207524717,0.1802,2773.8,2772.4,0.63378532]
[1645207524917,0.1302,2774.4,2772.5,1.53206928]
[1645207525120,0.50759704,2773.7,2772.5,3.21995928]
[1645207525318,0.50759704,2773.7,2772.6,1.53206928]
[1645207525519,1.1302,2774.4,2772.6,1.53206928]
[1645207525520,1.75415,2773.8,2772.6,1.53206928]
[1645207525716,1.75415,2773.8,2772.7,1.53206928]
[1645207525717,0.90205,2773.7,2772.7,1.53206928]
[1645207525918,0.90205,2773.7,2772.2,0.0143349]
[1645207525919,2.08225,2773.7,2772.2,0.0143349]
[1645207526117,2.38225,2773.7,2772.3,1.53221541]
[1645207526317,0.4802,2773.7,2772.3,1.53221541]
[1645207526518,0.65400494,2773.3,2772.5,0.55612824]
[1645207526819,0.1802,2773.5,2773.1,0.00112558]
[1645207527217,1.80428,2773.4,2773.1,0.00112558]
[1645207527420,0.1802,2773.9,2773.1,0.00112558]
[1645207527705,0.00249589,2774.3,2773.4,0.5023615]
[1645207527706,0.54570162,2774.3,2773.4,0.5023615]
[1645207527907,0.00249597,2774.3,2773.4,0.5023615]
[1645207528400,0.00249597,2774.3,2773.2,0.41812554]
[1645207528401,0.9019,2774.1,2773.2,0.00112554]
[1645207529001,0.9019,2774.1,2773.6,0.00112537]
[1645207529201,0.3,2774.0,2773.6,0.00112537]
[1645207529704,0.02229099,2773.7,2773.6,0.00112537]
[1645207531106,0.6145445,2774.6,2773.6,0.00112537]
[1645207531334,0.0024403,2774.3,2773.6,0.00112537]
[1645207531532,0.0024403,2774.3,2773.5,0.54902257]
[1645207532138,0.0024403,2774.3,2773.5,0.00093626]
[1645207532333,0.90194,2774.1,2773.5,0.00093626]
[1645207532535,0.1802,2774.0,2773.5,0.00093626]
[1645207532837,0.1802,2774.0,2772.6,0.02241699]
[1645207532838,0.4802,2774.0,2772.6,0.02241699]
[1645207533234,0.64804697,2773.3,2772.6,0.02241699]
[1645207533536,0.90219,2773.2,2772.6,0.02241699]
[1645207534035,0.3,2773.1,2772.6,0.02241699]
[1645207535080,0.3,2773.1,2772.7,0.00113197]
[1645207535770,1.00278986,2773.3,2772.7,0.00113197]
[1645207536070,0.3,2773.3,2772.7,0.00113197]
[1645207536271,0.04080401,2773.7,2772.8,0.90297195]
[1645207536272,0.22100401,2773.7,2772.8,0.90297195]
[1645207536470,0.04080401,2773.7,2772.8,1.80478485]
[1645207536872,0.04080401,2773.7,2772.8,1.20294485]
[1645207537072,0.66806417,2774.4,2773.7,0.0709901]
[1645207537474,0.67057294,2774.4,2773.7,0.0709901]
[1645207537773,0.90177,2774.3,2773.7,0.0709901]
[1645207538176,1.80379,2774.2,2773.7,0.0709901]
[1645207538374,3.90758,2774.2,2773.7,0.0709901]
[1645207538574,3.6802,2774.1,2773.9,0.0011315]
[1645207538817,15.8121,2774.1,2773.9,0.0011315]
[1645207539016,11.93,2774.0,2773.9,0.0011315]
[1645207539216,4.8821,2774.1,2773.9,0.0011315]
[1645207539217,1.804,2774.1,2773.9,0.0011315]
[1645207539418,1.00250936,2774.4,2773.9,0.0011315]
[1645207539617,0.00250936,2774.4,2773.9,0.0011315]
[1645207540017,0.00244192,2774.4,2773.8,0.00410595]
[1645207540725,0.54520248,2774.2,2773.8,0.00410595]
[1645207541119,0.54520248,2774.2,2773.8,0.00316017]
[1645207541319,0.54520248,2774.2,2773.7,0.0709901]
[1645207542764,13.27892248,2774.2,2773.3,0.00539189]
[1645207542965,14.6102,2774.1,2773.3,0.00539189]
[1645207543166,15.9102,2774.1,2773.3,0.00539189]
[1645207543369,15.9102,2774.1,2773.8,0.00106891]
[1645207543666,13.3122992,2774.1,2773.8,0.00106891]
[1645207543868,1.80423,2774.0,2773.8,0.00106891]
[1645207544268,2.70632,2774.0,2773.9,0.01308785]
[1645207544469,0.90213,2774.0,2773.9,0.01308785]
[1645207544870,0.3,2774.0,2773.9,0.01308785]
[1645207545269,0.95520248,2774.2,2773.9,0.01308785]
[1645207545570,0.65520248,2774.2,2773.0,0.417]
[1645207545769,0.65520248,2774.2,2773.8,0.00106891]
[1645207545770,0.3,2774.0,2773.8,0.00106891]
[1645207547020,0.3,2774.0,2773.3,0.01603631]
[1645207547220,0.3,2774.0,2772.5,5.0057237]
[1645207547221,0.3,2774.0,2772.6,5.83090574]
[1645207547420,0.3,2774.0,2772.6,1.80622734]
[1645207547421,0.90206,2773.9,2772.6,1.80622734]
[1645207547622,0.3,2773.8,2772.7,0.00325235]
[1645207548120,3.5,2773.9,2772.7,0.00325235]
[1645207548121,0.55403801,2773.3,2772.7,0.00325235]
[1645207548321,0.55403801,2773.3,2773.1,0.00095046]
[1645207549521,1.45618801,2773.3,2773.1,0.00095048]
[1645207550170,0.36213801,2773.3,2773.1,0.00095048]
[1645207550771,0.00243465,2773.4,2773.1,0.00091429]
[1645207551870,0.00244709,2773.4,2773.1,0.00091428]
[1645207554216,0.0024495,2773.4,2773.2,0.01216482]
[1645207554417,0.01421404,2773.3,2773.2,0.01216482]
[1645207556621,1.404e-05,2773.3,2773.2,0.01216482]
[1645207557223,0.00244949,2773.4,2773.3,0.00078596]
[1645207557867,0.00244958,2773.4,2773.3,0.00078596]
[1645207559267,0.00244947,2773.5,2773.3,0.00078596]
[1645207559665,0.00244947,2773.5,2773.3,2.22139596]
[1645207560068,0.00244947,2773.5,2773.3,2.52139596]
[1645207560266,0.00244947,2773.5,2773.3,2.22139596]
[1645207560267,0.00217272,2773.5,2773.3,2.22139596]
[1645207560468,0.00217272,2773.5,2773.3,0.00078596]
[1645207561519,0.00244797,2773.5,2773.3,0.00078596]
[1645207562320,0.00244797,2773.5,2773.3,0.90271596]
[1645207562719,0.00245707,2773.5,2773.3,0.90271596]
[1645207562920,0.00245707,2773.5,2773.4,1.94917994]
[1645207563723,0.00245707,2773.5,2773.4,2.24917994]
[1645207563920,0.58862513,2774.4,2773.4,2.24917994]
[1645207563921,0.00245706,2773.6,2773.4,2.24917994]
[1645207564122,0.00245706,2773.6,2773.5,0.00325235]
[1645207564326,0.00245706,2773.6,2773.4,0.3]
[1645207565170,0.00245719,2773.6,2773.3,1.20271596]
[1645207565369,0.00245719,2773.6,2773.5,0.5790021]
[1645207565774,0.00245719,2773.6,2773.5,2.11103081]
[1645207566373,0.00244801,2773.7,2773.5,6.02803081]
[1645207566572,0.00244801,2773.7,2773.6,3.33531871]
[1645207566773,0.00244801,2773.7,2773.6,4.05231871]
[1645207567174,0.00244801,2773.7,2773.6,5.85560871]
[1645207567573,1.50336294,2774.9,2773.6,2.52029]
[1645207567574,0.002448,2773.8,2773.6,2.52029]
[1645207567775,0.002448,2773.8,2773.6,0.717]
[1645207568680,0.00489596,2773.8,2773.7,1.53189054]
[1645207568924,0.00244796,2773.8,2773.7,1.53189054]
[1645207569326,0.00244796,2773.8,2773.6,3.0051334]
[1645207569926,0.00244795,2773.9,2773.6,3.0051334]
[1645207570127,0.00244795,2773.9,2773.6,4.8086889]
[1645207570731,0.00244795,2773.9,2773.7,0.417]
[1645207572572,2.22493294,2774.8,2774.1,1.55156184]
[1645207572763,3.5,2774.7,2773.9,1.80345]
[1645207572968,6.32316294,2774.5,2773.3,0.00403831]
[1645207573169,0.78916169,2773.5,2773.3,0.00403831]
[1645207573365,3.6802,2773.4,2773.3,0.00078596]
[1645207573565,16.93,2773.3,2773.2,1.794e-05]
[1645207573764,20.16127329,2773.3,2772.2,0.0143349]
[1645207573965,10.93,2772.6,2772.2,0.0143349]
[1645207574165,1.34005485,2772.9,2772.2,0.0143349]
[1645207574364,0.90253,2772.5,2772.2,0.0143349]
[1645207574564,0.1101,2772.4,2772.2,0.0143349]
[1645207574769,0.9026225,2772.5,2772.2,0.0143349]
[1645207574770,0.1101,2772.5,2772.2,0.0143349]
[1645207574965,1.1101,2773.0,2772.2,0.0143349]
[1645207575164,1.34005485,2773.4,2772.2,0.0143349]
[1645207575165,1.1102,2773.3,2772.5,0.60348799]
[1645207575464,0.90227,2772.9,2772.6,0.00325235]
[1645207575664,0.90227,2772.9,2772.2,0.0143349]
[1645207575665,0.3,2772.9,2772.2,0.0143349]
[1645207575867,0.9025595,2772.7,2772.2,0.0143349]
[1645207576072,1.2025595,2772.7,2772.2,0.0143349]
[1645207576313,3.5,2772.6,2772.2,0.0143349]
[1645207576716,11.83271,2772.5,2772.2,0.0143349]
[1645207577015,12.73547,2772.3,2771.9,0.00325235]
[1645207577217,10.93,2771.9,2771.0,0.01]
[1645207577420,5.0,2771.2,2769.3,1.6637]
[1645207577616,0.60420167,2770.4,2769.5,0.79286942]
[1645207577816,12.73663,2770.3,2769.8,0.04661073]
[1645207578015,12.73663,2770.3,2769.5,0.2574]
[1645207578016,11.8333406,2770.2,2769.5,0.2574]
[1645207578224,11.8333406,2770.2,2768.6,7.39540281]
[1645207578225,5.0,2769.9,2768.2,1.95691854]
[1645207578417,15.93,2769.7,2768.3,1.53434454]
[1645207578620,10.93,2769.5,2767.8,0.48911108]
[1645207578819,10.93,2769.5,2766.7,0.01960227]
[1645207578820,5.0,2768.5,2766.7,0.01960227]
[1645207579019,5.0,2768.5,2767.1,0.50309128]
[1645207579020,0.50883562,2767.9,2767.1,0.50309128]
[1645207579219,0.417,2767.8,2766.7,0.01960227]
[1645207579420,0.417,2767.8,2766.2,11.67613723]
[1645207579620,0.1806,2768.6,2767.6,0.45]
[1645207579823,2.71229,2768.6,2767.6,0.45]
[1645207580100,0.417,2768.5,2767.6,0.45]
[1645207580273,0.417,2768.5,2766.2,16.52613723]
[1645207580274,0.62269232,2768.3,2766.2,11.52613723]
[1645207580477,0.62269232,2768.3,2766.2,11.42613723]
[1645207580478,0.5976,2768.2,2766.2,11.42613723]
[1645207580676,0.61049675,2768.2,2766.3,3.5]
[1645207580876,1.8017,2768.2,2766.2,11.42613723]
[1645207581075,5.3017,2768.2,2766.2,11.42613723]
[1645207581279,0.61877802,2767.5,2766.6,0.5513821]
[1645207581478,2.8017,2768.2,2766.6,0.5513821]
[1645207581677,1.717,2768.2,2766.6,0.5013821]
[1645207581876,0.717,2768.2,2766.6,0.5013821]
[1645207582078,14.43,2768.1,2767.1,2.855e-05]
[1645207582280,10.93,2767.9,2767.1,2.855e-05]
[1645207582476,6.5976,2767.8,2766.6,0.0195453]
[1645207582679,0.3,2767.7,2766.6,0.0195453]
[1645207582877,0.5976,2767.6,2766.6,0.0195453]
[1645207583076,0.5976,2767.6,2766.8,0.50326202]
[1645207583077,0.417,2767.6,2766.8,0.50326202]
[1645207583277,0.417,2767.6,2766.2,11.42613723]
[1645207583278,4.217,2767.6,2766.2,11.42613723]
[1645207583481,4.517,2767.6,2766.2,11.42613723]
[1645207583677,4.517,2767.6,2765.7,3.77395203]
[1645207583678,1.26681616,2767.5,2765.7,3.77395203]
[1645207583922,2.7146979,2766.8,2765.8,1.6538]
[1645207584121,0.5977,2766.7,2765.7,0.26237204]
[1645207584323,0.3,2766.8,2765.7,0.79941971]
[1645207584521,1.417,2767.2,2765.7,0.79941971]
[1645207584522,0.417,2767.2,2765.7,0.79941971]
[1645207584722,0.3,2767.2,2765.7,0.79941971]
[1645207584921,3.5,2767.5,2765.7,0.79941971]
[1645207585120,3.5,2767.5,2765.7,1.09941971]
[1645207585323,1.0,2767.4,2766.6,0.57101488]
[1645207585524,3.5,2767.3,2765.7,0.26237204]
[1645207585724,0.1807,2767.7,2765.7,0.26237204]
[1645207585725,5.0,2767.0,2765.7,0.26237204]
[1645207585923,5.0977,2766.9,2765.7,0.26237204]
[1645207586122,5.0977,2766.9,2765.4,6.65e-05]
[1645207586123,10.93,2766.2,2765.4,6.65e-05]
[1645207586324,10.93,2765.8,2765.1,0.003566]
[1645207586531,0.90521,2765.9,2765.1,0.003566]
[1645207586532,0.96177662,2765.7,2765.1,0.003566]
[1645207586724,1.08611616,2766.1,2765.7,0.01950278]
[1645207586923,4.0,2765.9,2765.1,6.6e-05]
[1645207587130,4.0,2765.9,2763.1,0.02568615]
[1645207587131,0.08611616,2764.5,2763.1,0.02568615]
[1645207587425,0.08611616,2764.5,2762.5,3.8899993]
[1645207587426,5.0,2764.0,2762.5,3.8899993]
[1645207587715,0.417,2764.4,2762.5,3.19319791]
[1645207587716,10.63,2763.3,2762.5,3.19319791]
[1645207587923,8.73542738,2764.4,2762.5,3.19319791]
[1645207587924,2.26363096,2764.5,2762.6,0.04410969]
[1645207588217,0.5,2764.7,2762.7,0.1789]
[1645207588416,0.01257624,2763.4,2760.0,6.504]
[1645207588614,0.01257624,2763.4,2762.6,0.00316683]
[1645207588615,0.01241353,2762.7,2762.6,0.00316683]
[1645207588813,0.417,2762.8,2760.2,0.01270298]
[1645207589015,5.01314045,2763.3,2760.2,0.01270298]
[1645207589016,0.50682996,2762.1,2761.3,0.68993567]
[1645207589215,0.50682996,2762.1,2760.2,0.01586981]
[1645207589216,0.50574394,2762.1,2761.4,0.00316683]
[1645207589415,0.1809,2763.0,2760.2,0.00316683]
[1645207589416,4.0979,2762.0,2760.2,0.00316683]
[1645207589616,0.417,2762.4,2760.8,5.0]
[1645207589815,0.2793,2762.9,2761.8,5.0]
[1645207590015,0.2793,2762.9,2761.9,4.05646683]
[1645207590418,0.6963,2762.9,2761.9,4.05646683]
[1645207590616,0.2793,2762.9,2761.9,4.05646683]
[1645207591017,0.5,2763.7,2762.3,5.0]
[1645207591217,0.5,2763.7,2761.9,4.05646683]
[1645207591218,3.681,2764.4,2762.4,0.00316683]
[1645207591427,3.5,2764.4,2763.8,0.68729856]
[1645207591628,0.1809,2764.5,2763.9,3.86193844]
[1645207591924,0.1807,2764.6,2763.9,3.86193844]
[1645207592326,0.0008,2764.8,2763.9,3.86193844]
[1645207592327,0.1807,2764.7,2763.9,3.86193844]
[1645207592726,0.00267749,2764.4,2763.9,3.86193844]
[1645207593125,0.53795086,2765.0,2763.9,3.86193844]
[1645207593126,0.5,2765.1,2764.0,6.0]
[1645207593327,0.5,2765.1,2764.0,12.0]
[1645207593526,0.5,2765.1,2764.2,5.01211864]
[1645207593727,0.53298004,2766.5,2764.2,0.01211864]
[1645207593928,0.1095,2766.4,2764.3,0.417]
[1645207594128,0.64248004,2766.5,2764.3,0.417]
[1645207594531,0.0123355,2766.0,2764.3,0.07111139]
[1645207594727,0.1095,2765.9,2764.3,0.07111139]
[1645207594929,0.54549928,2765.6,2764.8,0.70715823]
[1645207595167,0.54549928,2765.6,2764.1,0.1874]
[1645207595168,0.90532,2765.1,2764.1,0.1874]
[1645207595367,0.1095,2765.0,2764.1,0.1874]
[1645207595767,0.01224249,2765.3,2760.7,5.215]
[1645207595768,0.01288014,2764.2,2760.7,5.215]
[1645207596067,0.01288014,2764.2,2762.7,0.0031658]
[1645207596068,0.020444,2762.8,2762.7,0.0031658]
[1645207596266,0.020444,2762.8,2761.6,0.5]
[1645207596267,0.020444,2762.8,2761.7,0.07117834]
[1645207596468,0.020444,2762.8,2761.7,5.07434414]
[1645207596673,3.6096,2763.9,2761.7,5.07434414]
[1645207596674,3.5,2763.9,2762.4,5.0]
[1645207596866,1.0,2764.9,2762.0,0.42952188]
[1645207596867,0.417,2764.6,2762.0,0.42952188]
[1645207597067,3.5,2764.5,2762.1,0.0031658]
[1645207597267,3.5,2764.5,2764.1,0.55001096]
[1645207597470,0.5,2764.6,2764.1,0.55001096]
[1645207597767,0.01256213,2765.1,2764.1,0.55001096]
[1645207597966,0.36171,2765.5,2764.1,0.55001096]
[1645207597967,3.5,2765.5,2764.1,0.55001096]
[1645207598368,10.93,2765.6,2764.1,0.55001096]
[1645207598570,10.93,2765.4,2764.1,0.55001096]
[1645207598842,10.93,2765.2,2764.1,0.55001096]
[1645207599228,3.5,2765.8,2764.1,0.55001096]
[1645207599429,10.93,2765.7,2764.1,0.55001096]
[1645207599732,10.93,2765.5,2764.1,0.55001096]
[1645207599928,0.43014045,2765.9,2764.1,0.55001096]
[1645207600234,0.43014045,2765.9,2764.4,5.0]
[1645207600235,0.00266315,2765.1,2764.4,5.0]
[1645207600530,0.00266315,2765.1,2764.4,0.417]
[1645207600931,0.00266315,2765.1,2764.5,2.506]
[1645207601133,0.00266315,2765.1,2764.5,2.15617389]
[1645207601331,0.00266316,2764.9,2764.7,0.51678735]
[1645207601533,0.00266316,2764.9,2763.9,0.00355609]
[1645207602568,0.0026632,2764.5,2764.2,0.67398153]
[1645207603776,0.00263716,2764.5,2764.2,0.67398153]
[1645207604169,0.00263716,2764.5,2764.2,0.60658338]
[1645207604872,0.00246216,2764.5,2764.2,0.60658338]
[1645207606622,0.00246216,2764.5,2763.4,2.5042]
[1645207606819,0.1098,2764.4,2763.4,2.5042]
[1645207607017,11.4568,2764.4,2764.1,2.57e-06]
[1645207607217,0.00079743,2764.0,2762.9,0.00307323]
[1645207607415,0.00079743,2764.0,2762.9,0.00314827]
[1645207607416,11.0398,2763.9,2762.9,0.00314827]
[1645207607617,11.0398,2763.9,2763.3,0.00316694]
[1645207607618,10.93,2763.8,2763.3,0.00316694]
[1645207608016,11.0398,2763.9,2763.3,0.00316694]
[1645207608818,11.0398,2763.9,2762.2,2.48304669]
[1645207608819,10.88,2763.5,2762.2,2.48304669]
[1645207609020,10.88,2763.5,2762.3,0.00315111]
[1645207609021,3.6095,2763.4,2762.3,0.00315111]
[1645207609219,14.5395,2763.4,2762.3,0.00315111]
[1645207609420,3.5,2763.4,2762.3,0.00315111]
[1645207609621,0.1092,2763.5,2762.7,0.70780858]
[1645207609819,0.1092,2763.5,2762.7,0.51095969]
[1645207610065,0.1092,2763.5,2762.8,0.00313593]
[1645207610271,0.1092,2763.5,2763.2,0.5513569]
[1645207610468,11.347,2763.6,2762.2,2.48304669]
[1645207610767,10.93,2763.5,2762.3,0.00724655]
[1645207610968,14.43,2763.5,2762.3,0.00724655]
[1645207611170,11.03205813,2763.5,2762.3,0.00724655]
[1645207611368,10.92385813,2763.5,2762.2,2.44029324]
[1645207611566,10.92385813,2763.3,2762.6,0.5141246]
[1645207611768,10.93,2763.4,2762.7,0.00312048]
[1645207612167,3.6079,2763.8,2762.7,0.00312048]
[1645207612771,0.5249,2763.8,2763.6,0.52546365]
[1645207612972,0.1076,2763.9,2763.6,0.52546365]
[1645207613172,0.00079743,2764.0,2763.6,0.52546365]
[1645207613571,0.00079743,2764.0,2763.7,2.4477]
[1645207615321,0.00079743,2764.0,2763.7,1.4477]
[1645207615522,0.00079743,2764.0,2763.6,0.52546365]
[1645207615723,0.00079743,2764.0,2763.4,0.2452]
[1645207615724,0.00349787,2764.0,2763.2,0.25156365]
[1645207615921,0.00349787,2764.0,2763.3,0.69732052]
[1645207616722,0.00349787,2764.0,2763.5,0.90491]
[1645207616922,0.00270046,2763.8,2763.6,0.417]
[1645207617325,4.6e-07,2763.8,2763.6,0.717]
[1645207617579,4.6e-07,2763.8,2763.7,5.1809]
[1645207617779,4.6e-07,2763.8,2763.7,5.8979]
[1645207617979,0.00079743,2764.0,2763.7,6.8979]
[1645207618179,0.00079743,2764.0,2763.8,1.8092728]
[1645207618381,0.00079743,2764.0,2763.9,1.14592019]
[1645207618580,0.00079743,2764.0,2763.9,1.44592019]
[1645207619680,0.00079743,2764.0,2763.9,1.33745019]
[1645207619882,0.00079743,2764.0,2763.9,1.13781019]
[1645207620080,0.00079743,2764.0,2763.9,1.13471019]
[1645207620284,0.00079743,2764.0,2763.9,1.08471019]
[1645207620984,0.00079743,2764.0,2763.9,1.38471019]
[1645207621183,0.1693,2766.1,2763.9,1.38471019]
[1645207621184,0.1693,2766.1,2764.3,0.90449]
[1645207621423,0.1693,2766.1,2764.5,7.7135375]
[1645207621625,0.1693,2766.1,2764.6,0.417]
[1645207621819,0.1693,2766.1,2764.7,5.63156103]
[1645207622020,0.1693,2766.1,2764.9,4.99496]
[1645207622218,0.1693,2766.1,2764.7,1.04856103]
[1645207622418,0.1693,2766.1,2764.8,1.80894]
[1645207623820,0.1693,2766.1,2766.0,0.59524955]
[1645207624020,0.1693,2766.1,2766.0,0.29460313]
[1645207624225,0.1693,2766.1,2764.8,1.80894]
[1645207624226,0.02946031,2764.9,2764.8,1.80894]
[1645207624422,0.02946031,2764.9,2764.7,0.417]
[1645207624923,0.02946031,2764.9,2764.7,6.30036]
[1645207625177,3.5,2766.5,2764.8,6.1807]
[1645207625374,3.5,2767.1,2765.2,1.80863]
[1645207625571,0.0768229,2767.0,2765.3,0.417]
[1645207625772,0.0768229,2767.0,2765.4,0.1807]
[1645207625974,0.06266265,2767.3,2765.5,1.32135]
[1645207625975,0.08996335,2767.2,2765.5,1.32135]
[1645207626271,0.52225813,2766.8,2766.1,0.59918]
[1645207626471,0.0980229,2766.7,2766.1,0.59918]
[1645207626677,0.00270021,2766.3,2766.1,0.59918]
[1645207628573,3.5,2767.0,2765.4,0.00357728]
[1645207628831,10.93,2766.7,2765.4,0.00357728]
[1645207629021,0.90474,2766.0,2765.3,1.9073]
[1645207629325,3.99383329,2765.9,2764.0,0.1807]
[1645207629529,0.68406403,2765.2,2764.6,0.51848406]
[1645207629722,0.49383329,2765.8,2764.6,0.51848406]
[1645207629723,1.80984,2765.6,2764.6,0.51848406]
[1645207629922,10.93,2765.4,2764.6,0.51848406]
[1645207630128,11.83492,2765.4,2764.6,0.51848406]
[1645207631025,0.07685567,2765.3,2764.3,0.00304601]